Cogmind - Beta 13 @@@ ROGUE MODE // 2024.06.24 @ 19:22:21 Player: doughoff Result: Self-destructed Performance ------------- Evolutions (1) 500 Regions Visited (5) 1000 Robots Destroyed (67) 335 Value Destroyed (1398) 1398 Prototype IDs (28) 560 Alien Tech Used (0) 0 Bonus (253) 253 TOTAL SCORE: 4046 Bonus ------- High Alert Combat Kills 37 Follower Combat Kills 21 Aligned with FarCom 300 Friendly Fire -105 Cogmind --------- Core Integrity 118/400 Matter 300/300 Energy 75/100 System Corruption 1% Temperature Cool (98) Movement Core (450) Ox8 Location -9/Exiles Parts ------- > --- POWER (1) -------- (None) > --- PROPULSION (3) --- (None) > --- UTILITY (3) ------ Heat Sink Large Storage Unit > --- WEAPON (2) ------- Advanced Beam Cannon > --- INVENTORY (15) --- Improved Ion Engine Light Treads Improved Treads Huge Storage Unit Light Armor Plating Hardened Light Armor Plating Insulated Plating Insulated Plating Hacking Suite Hacking Suite Advanced Beam Cannon Improved Assault Rifle Improved Light Cannon Peak State ------------ > --- POWER ------------ Improved Ion Engine > --- PROPULSION ------- Light Treads Light Treads Improved Treads > --- UTILITY ---------- Heat Sink Large Storage Unit Hardened Light Armor Plating > --- WEAPON ----------- Minigun Minigun > --- INVENTORY -------- Improved Ion Engine Heavy Ion Engine Light Treads Light Treads Compact Wheel Sensor Array Signal Interpreter Light Armor Plating Hardened Light Armor Plating Insulated Plating Insulated Plating Hacking Suite Heavy Assault Rifle Minigun Minigun [Rating: 19] Favorites ----------- Power Improved Ion Engine Engine Improved Ion Engine Propulsion Light Treads Treads Light Treads Utility Large Storage Unit Device Heat Sink Storage Large Storage Unit Protection Hardened Light Armor Plating Weapon Improved Assault Rifle Energy Gun EM Shotgun Energy Cannon Advanced Beam Cannon Ballistic Gun Improved Assault Rifle Launcher Rocket Launcher Special Weapon Mining Laser Slashing Weapon Mining Claw Build | -11 -10 -10 -9 -9 -9 ------- Run | Yrd Mat Min Mat Min Exi Slots Evolved 2 | . . . 2 . . Power . | . . . . . . Propulsion 1 | . . . 1 . . Utility 1 | . . . 1 . . Weapon . | . . . . . . Parts Attached 53 | 6 9 . 31 5 2 Power 3 | 1 1 . 1 . . Engine 3 | 1 1 . 1 . . Core . | . . . . . . Reactor . | . . . . . . Propulsion 18 | 2 . . 14 2 . Treads 18 | 2 . . 14 2 . Leg . | . . . . . . Wheel . | . . . . . . Hover . | . . . . . . Flight . | . . . . . . Utility 14 | 1 3 . 6 3 1 Device 3 | . 1 . 2 . . Storage 4 | 1 1 . . 2 . Processor . | . . . . . . Hackware . | . . . . . . Protection 7 | . 1 . 4 1 1 Artifact . | . . . . . . Weapon 18 | 2 5 . 10 . 1 Energy Gun 4 | . 3 . 1 . . Energy Cannon 1 | . . . 1 . . Ballistic Gun 10 | 2 . . 8 . . Ballistic Cannon . | . . . . . . Launcher 1 | . . . . . 1 Special Weapon 1 | . 1 . . . . Impact Weapon . | . . . . . . Slashing Weapon 1 | . 1 . . . . Piercing Weapon . | . . . . . . Special Melee Weapon . | . . . . . . Unidentified Prototypes 2 | . . . 2 . . Parts Lost 11 | . . . 4 . 7 Power 1 | . . . . . 1 Propulsion 4 | . . . 2 . 2 Utility 2 | . . . . . 2 Weapon 4 | . . . 2 . 2 Highest Loss Streak 7 | . . . 4 . 7 To Critical Strikes . | . . . . . . Average Slot Usage (%) 97 | . 98 100 95 100 99 Engine 11 | . 14 14 11 11 10 Treads 30 | . 28 28 30 33 32 Device 7 | . . . 9 11 11 Storage 11 | . 14 14 11 11 11 Protection 11 | . 12 14 11 11 10 Energy Gun 7 | . 24 28 2 . . Energy Cannon 5 | . . . 2 11 11 Ballistic Gun 10 | . 3 . 16 11 10 Naked Turns . | . . . . . . Heaviest Build 102 | 12 38 38 42 102 42 Greatest Support 63 | 40 40 40 63 60 60 Greatest Overweight (x) 13 | . . . 13 1 . Average Overweight (x) . | . . . . . . Largest Inventory Capacity 25 | 8 15 15 15 25 15 Average Capacity 14 | 7 13 15 15 15 15 Most Carried 15 | 3 13 13 15 15 15 Average Carried 13 | 1 9 13 14 14 14 Final Capacity 15 | 8 15 15 15 15 15 Final Carried 15 | 3 13 13 15 15 13 Class Distribution -------------------- 56% | Mutant 43% | Scavenger-Mutant Dominant Class ---------------- Mutant | -10/Materials Mutant | -10/Mines Mutant | -9/Materials Scavenger-Mutant | -9/Mines Scavenger-Mutant | -9/Exiles Resources | -11 -10 -10 -9 -9 -9 ----------- Run | Yrd Mat Min Mat Min Exi Matter Collected 1350 | 251 117 . 822 119 41 Remotely . | . . . . . . Salvage Created 2220 | . 490 4 1457 213 56 Parts 157 | . 32 5 102 6 12 Haulers Intercepted 5 | . 1 . 4 . . Recyclers Shooed . | . . . . . . Parts Field Recycled . | . . . . . . Retrieved Matter . | . . . . . . Parts Self-Destructed . | . . . . . . Prevented . | . . . . . . Kills | -11 -10 -10 -9 -9 -9 ------- Run | Yrd Mat Min Mat Min Exi Combat Hostiles Destroyed 42 | . 9 . 23 3 7 Guns 30 | . 9 . 21 . . Cannons 5 | . . . 1 2 2 AOE 6 | . . . 1 . 5 Classes Destroyed 12 | . 7 . 4 . 1 Worker 8 | . 1 1 5 1 . Builder 4 | . 1 1 2 . . Tunneler 1 | . . . 1 . . Hauler 5 | . 1 . 4 . . Recycler 2 | . . . 1 1 . Operator 4 | . 1 . 3 . . Watcher 7 | . 3 . 4 . . Swarmer 10 | . 3 . 7 . . Grunt 13 | . 6 . 5 2 . Brawler 3 | . . . 2 1 . Sentry 9 | . . . 9 . . Assembled 7 | . . . . . 7 Best Kill Streak 8 | . 3 2 6 2 8 Combat Bots Only 7 | . 3 . 5 2 7 Max Kills in Single Turn 3 | . 2 1 2 1 3 Gunslinging 1 | . . . 1 . . Exploded 3 | . . . 1 . 3 Melee . | . . . . . . Uniques/NPCs Destroyed 1 | . . . . . 1 EX-BIN (-9/Exiles) Combat | -11 -10 -10 -9 -9 -9 -------- Run | Yrd Mat Min Mat Min Exi Hostile Shots Fired 213 | . 36 12 99 20 46 Missed 45 | . 5 1 25 9 5 Damage Taken 2719 | . 425 152 853 135 1154 Core 367 | . 68 17 125 . 157 Absorbed by Shields . | . . . . . . Regen/Repaired (Parts) 156 | . . . 156 . . Core Remaining (%) 83 | 100 . 66 . . . Volleys Fired 161 | . 35 5 91 15 15 Largest 2 | . 2 2 2 2 2 Hottest 91 | . 90 90 91 91 91 Shots Fired 298 | . 57 10 180 30 21 Gun 251 | . 57 10 163 15 6 Cannon 45 | . . . 17 15 13 Launcher 2 | . . . . . 2 Special . | . . . . . . Kinetic 188 | . 16 . 151 15 6 Thermal 45 | . . . 17 15 13 Explosive 2 | . . . . . 2 Electromagnetic 63 | . 41 10 12 . . Robot Hit Streak 20 | . 7 6 20 8 12 Robot Miss Streak 6 | . 3 3 6 2 1 Penetration Max . | . . . . . . Secondary Targets 4 | . 1 . 3 . . Max Gunslinging Chain 1 | . 1 . 1 . . Shots Hit Robots 202 | . 47 9 111 18 17 Core Hits 100 | . 26 2 53 7 12 Critical Kills 1 | . . . . 1 . Critical Parts Destroyed . | . . . . . . Critical Strikes 1 | . . . . 1 . Meltdown 1 | . . . . 1 . Melee Attacks 3 | . 3 . . . . Impact . | . . . . . . Slashing 3 | . 3 . . . . Piercing . | . . . . . . Sneak Attacks . | . . . . . . Combat Hostiles . | . . . . . . Follow-up Attacks . | . . . . . . Damage Inflicted 4044 | . 745 117 2092 411 679 Guns 2639 | . 607 108 1693 142 89 Cannons 676 | . . . 211 260 205 Explosions 701 | . 138 . 178 . 385 Melee . | . . . . . . Ramming 28 | . . 9 10 9 . Kinetic 1918 | . 171 . 1516 142 89 Thermal 992 | . 138 . 389 260 205 Explosive 385 | . . . . . 385 Electromagnetic 721 | . 436 108 177 . . Impact . | . . . . . . Slashing . | . . . . . . Piercing . | . . . . . . Highest Corruption 1 | . . . . . 1 Average Corruption 1 | . . . . . 1 Corruption Purged . | . . . . . . Corruption Blocked . | . . . . . . Overload Shots . | . . . . . . Overflow Damage 50 | . 16 . . . 34 Projectiles 25 | . . . . . 25 Explosions 25 | . 16 . . . 9 Melee . | . . . . . . Knockbacks . | . . . . . . Impact . | . . . . . . Kinetic . | . . . . . . Secondary . | . . . . . . Self-Inflicted Damage 69 | . 36 . 8 . 25 Shots 4 | . 1 . 1 . 2 Rammed 4 | . . . 2 2 . Targets Rammed 6 | . . 2 2 2 . Kicked . | . . . . . . Crushed 2 | . . 2 . . . Highest Temperature 324 | . 324 300 179 60 166 Average Temperature 68 | . 81 186 43 23 71 Received Heat Transfer 826 | . 180 84 285 51 226 Effects 5 | . 3 2 . . . Energy Bleed 2 | . 2 . . . . Interference 3 | . 1 2 . . . Siege Activations . | . . . . . . Robots Corrupted . | . . . . . . Combat Hostiles . | . . . . . . Parts Fried 3 | . 3 . . . . Impact Corruptions . | . . . . . . Robots Melted 1 | . . . . 1 . Combat Hostiles 1 | . . . . 1 . Parts Melted 5 | . . . . 1 4 Heat Transferred 1634 | . 200 . 620 444 370 Parts Sabotaged . | . . . . . . Parts Stolen . | . . . . . . Parts Stripped . | . . . . . . Power Chain Reactions 4 | . 2 . 2 . . Alert | -11 -10 -10 -9 -9 -9 ------- Run | Yrd Mat Min Mat Min Exi Peak Influence 459 | . 189 50 459 278 . Initial 178 | . . . 21 178 . Average 180 | . 57 30 279 158 . Maximum Alert Level 2 | . . . 2 1 . Low Security (%) 61 | 100 100 100 35 56 . Level 1 23 | . . . 31 43 . Level 2 15 | . . . 33 . . Level 3 . | . . . . . . Level 4 . | . . . . . . Level 5 . | . . . . . . High Security . | . . . . . . Max Security . | . . . . . . Squads Dispatched 3 | . 1 . 2 . . Investigation 2 | . . . 2 . . Extermination . | . . . . . . Reinforcement 1 | . 1 . . . . Assault . | . . . . . . Garrison . | . . . . . . Intercept . | . . . . . . Searches Triggered . | . . . . . . Construction Impeded . | . . . . . . Haulers Reinforced . | . . . . . . Active Scanning Responses . | . . . . . . Cargo Convoy Interrupts . | . . . . . . Stealth | -11 -10 -10 -9 -9 -9 --------- Run | Yrd Mat Min Mat Min Exi Distress Signals 6 | . 1 . 5 . . Communications Jammed . | . . . . . . Distress Signals . | . . . . . . Times Spotted 92 | . 14 4 39 8 27 Peak Tracking Total 12 | . 4 2 6 3 12 Tactical Retreats 5 | . . 1 1 . 3 Traps | -11 -10 -10 -9 -9 -9 ------- Run | Yrd Mat Min Mat Min Exi Traps Triggered 3 | . . . 3 . . Indirectly . | . . . . . . Trap Hack Attempts . | . . . . . . Triggered . | . . . . . . Disarmed . | . . . . . . Reprogrammed . | . . . . . . Reused . | . . . . . . Traps Extracted . | . . . . . . Installed . | . . . . . . Triggered . | . . . . . . Machines | -11 -10 -10 -9 -9 -9 ---------- Run | Yrd Mat Min Mat Min Exi Machines Disabled 8 | . 1 . 5 1 1 Max in Single Turn 1 | . 1 . 1 1 . Machines Repaired . | . . . . . . Machines Dismantled . | . . . . . . Machines Sabotaged . | . . . . . . Overloaded Fab Kills . | . . . . . . Hacking | -11 -10 -10 -9 -9 -9 --------- Run | Yrd Mat Min Mat Min Exi Machines Accessed 22 | . 9 . 11 1 1 Terminals 16 | . 7 . 8 1 . Fabricators . | . . . . . . Repair Stations 1 | . . . 1 . . Recycling Units 3 | . 2 . 1 . . Scanalyzers 1 | . . . 1 . . Garrison Access . | . . . . . . Total Hacks 65 | . 20 . 41 3 1 Successful 34 | . 11 . 21 1 1 Failed 29 | . 9 . 18 2 . Catastrophic 2 | . 2 . . . . Database Lockouts 2 | . . . 2 . . Manual 30 | . 13 . 15 1 1 Terminals 54 | . 18 . 33 3 . Fabricators . | . . . . . . Repair Stations 5 | . . . 5 . . Recycling Units 3 | . 2 . 1 . . Scanalyzers 2 | . . . 2 . . Garrison Access . | . . . . . . Terminal Hacks 21 | . 7 . 13 . 1 Record 4 | . 1 . 3 . . Part Schematic 1 | . 1 . . . . Robot Analysis 7 | . 3 . 4 . . Prototype ID Bank 1 | . . . 1 . . Branch Access Points 1 | . . . 1 . . Locate Traps 4 | . 2 . 2 . . Hauler Manifests 1 | . . . 1 . . Zone Layout 1 | . . . 1 . . Derelict Proto ID Bank 1 | . . . . . 1 Fabricator Hacks . | . . . . . . Repair Station Hacks 4 | . . . 4 . . Scan Component 2 | . . . 2 . . Repair 2 | . . . 2 . . Recycling Unit Hacks 3 | . 2 . 1 . . Report Inventory 3 | . 2 . 1 . . Scanalyzer 1 | . . . 1 . . Insert Component 1 | . . . 1 . . Garrison Access Hacks . | . . . . . . Unauthorized Hacks 5 | . 2 . 2 1 . Terminals 5 | . 2 . 2 1 . Botnet 5 | . 2 . 2 1 . Fabricators . | . . . . . . Repair Stations . | . . . . . . Recycling Units . | . . . . . . Scanalyzers . | . . . . . . Garrison Access . | . . . . . . Data Cores Recovered 2 | . . . 2 . . Used . | . . . . . . Hacking Detections 16 | . 7 . 8 1 . Full Trace Events 4 | . 1 . 2 1 . Feedback Events . | . . . . . . Feedback Blocked . | . . . . . . Robot Schematics Acquired . | . . . . . . Robots Built . | . . . . . . Authchips . | . . . . . . Time . | . . . . . . Total Robot Build Rating . | . . . . . . Part Schematics Acquired 1 | . 1 . . . . Parts Built . | . . . . . . Authchips . | . . . . . . Time . | . . . . . . Total Part Build Rating . | . . . . . . Parts Repaired 2 | . . . 2 . . Time 64 | . . . 64 . . Parts Recycled . | . . . . . . Recycled Matter . | . . . . . . Retrieved Matter . | . . . . . . Retrieved Components . | . . . . . . Parts Scanalyzed . | . . . . . . Part Schematics Acquired . | . . . . . . Parts Damaged . | . . . . . . Bothacking | -11 -10 -10 -9 -9 -9 ------------ Run | Yrd Mat Min Mat Min Exi Used RIF Installer . | . . . . . . Robots Hacked . | . . . . . . Non-combat . | . . . . . . Combat . | . . . . . . Robot Hacks Applied . | . . . . . . Relay Couplers Released . | . . . . . . Fabnet Peak Effective % . | . . . . . . Robots Rewired . | . . . . . . Allies Hacked . | . . . . . . Hacks Repelled . | . . . . . . Allies | -11 -10 -10 -9 -9 -9 -------- Run | Yrd Mat Min Mat Min Exi Total Allies 3 | . . . . 3 . Largest Group 3 | . . . . 3 3 Highest-Rated Group 40 | . . . . 40 40 Highest-Rated Ally 16 | . . . . 16 16 Total Orders . | . . . . . . Ally Attacks 14 | . . . . 7 7 Total Damage 140 | . . . . 69 71 Kills 3 | . . . . 3 . Allies Corrupted . | . . . . . . Allies Melted . | . . . . . . Intel | -11 -10 -10 -9 -9 -9 ------- Run | Yrd Mat Min Mat Min Exi Robot Analysis Total 7 | . 3 . 4 . . Derelict Logs Recovered 2 | . . . . 2 . Drone Launches . | . . . . . . Drone Recoveries . | . . . . . . Exploration | -11 -10 -10 -9 -9 -9 ------------- Run | Yrd Mat Min Mat Min Exi Turns Passed 5224 | 60 1283 28 1929 910 1014 Spaces Moved 2785 | 32 696 7 924 516 610 Core 10 | 2 . . 8 . . Treads 2775 | 30 696 7 916 516 610 Legs . | . . . . . . Wheels . | . . . . . . Hover . | . . . . . . Flight . | . . . . . . Fastest Speed 50 | 50 160 160 160 160 160 Average Speed 161 | 153 160 160 165 161 160 Slowest Speed 700 | 160 160 160 700 240 160 Overloaded Moves . | . . . . . . Propulsion Burnouts . | . . . . . . Robots Hopped . | . . . . . . Cave-ins Triggered . | . . . . . . Exploration Rate (%) 59 | 3 98 7 75 87 89 Regions Visited 5 Branch Regions 3 Pre-discovered Areas 1 | . . . . 1 . Known Exits Taken 1 | . . . 1 . . Unknown Exits Taken 4 | 1 1 1 . 1 . Scrap Searched 2 | . . . . 2 . Spaces Dug 1 | . 1 . . . . Terrain Destroyed 18 | . 10 . 8 . . Melee 1 | . 1 . . . . Projectile . | . . . . . . AOE 17 | . 9 . 8 . . Terrain Rammed . | . . . . . . Walls Destroyed . | . . . . . . Machines Disabled . | . . . . . . Actions | -11 -10 -10 -9 -9 -9 --------- Run | Yrd Mat Min Mat Min Exi Total 3233 | 40 803 13 1184 566 627 Wait 132 | . 40 . 71 21 . Move 2781 | 31 695 7 923 515 610 Hop . | . . . . . . Pick Up 49 | 3 14 . 30 2 . Fast Attach 18 | 6 2 . 10 . . Attach 9 | . . . 7 . 2 Detach 1 | . . . 1 . . Swap 26 | . 7 . 14 5 . Drop 48 | . 7 . 35 6 . Fire 161 | . 35 5 91 15 15 Melee 3 | . 3 . . . . Ram . | . . . . . . Kick . | . . . . . . Crush 5 | . . 1 2 2 . Escape Stasis . | . . . . . . Rewire . | . . . . . . Trap . | . . . . . . Miscellaneous . | . . . . . . Route ------- -11/Scrapyard -10/Materials (discovered 4 exits: *Mat x3 / [*Min]) -10/Mines -9/Materials (discovered 3 exits: [*Mat x2] / *Min) -9/Mines (discovered 2 exits: [*Mat] / *Exi) -9/Exiles History --------- Turn | Location | Event 36 | -11/Scrapyard | Discovered new exit (range 16) 61 | -11/Scrapyard | Entered Materials 229 | -10/Materials | Discovered new exit (range 15) 303 | -10/Materials | Build established: Mutant 771 | -10/Materials | Discovered new exit (range 3) 1105 | -10/Materials | Discovered new exit (range 3) 1193 | -10/Materials | Discovered new exit (range 16) 1344 | -10/Materials | Entered Mines 1363 | -10/Mines | Discovered new exit (range 7) 1372 | -10/Mines | Entered Materials 1372 | -9/Materials | Evolved 2 slots: Propulsion x1, Utility x1 1598 | -9/Materials | Lost 4 parts (2n2w) 1721 | -9/Materials | Central database locked down 1721 | -9/Materials | Identified exit to Mines 2424 | -9/Materials | Central database locked down 2499 | -9/Materials | Discovered new exit (range 12) 2820 | -9/Materials | Discovered new exit (range 5) 3177 | -9/Materials | Repaired Hrd. Light Armor Plating 3220 | -9/Materials | Repaired Imp. Treads 3301 | -9/Materials | Entered Mines 3359 | -9/Mines | Met a Derelict bent on vengeance 3481 | -9/Mines | Build established: Scavenger-Mutant 3502 | -9/Mines | Discovered new exit (range 12) 3597 | -9/Mines | Found a hidden stash of uninstalled traps 3649 | -9/Mines | Learned Materials stockpile data 3849 | -9/Mines | Joined a pair of Derelicts in attacking an 0b10 outpost 3977 | -9/Mines | Assisted by bots powering up and referring to "LRC-V3" 3982 | -9/Mines | Learned location of 2 exits from Materials 4173 | -9/Mines | Learned location of Storage (-7) 4203 | -9/Mines | Deemed a non-threat by the Exiles lab entrance 4204 | -9/Mines | Discovered new exit (range 5) 4211 | -9/Mines | Entered Exiles 4211 | -9/Exiles | Accompanied by 3 allies 4248 | -9/Exiles | Met 8R-AWN 4277 | -9/Exiles | Met EX-HEX 4320 | -9/Exiles | Met EX-BIN 4413 | -9/Exiles | Aligned with FarCom system 4415 | -9/Exiles | Given EX-Vault access code 4455 | -9/Exiles | Opened EX-Vault 4525 | -9/Exiles | Warned to stay clear of 0b10 Research branches 4600 | -9/Exiles | Met EX-DEC 4680 | -9/Exiles | Visited The Gauntlet 5185 | -9/Exiles | Attacked by the Exiles 5210 | -9/Exiles | Destroyed EX-BIN 5221 | -9/Exiles | Core integrity fell below 50% 5225 | -9/Exiles | Self-destructed Last Messages --------------- 05210_ EX Chip 2 melted. 05210_ EX Chip 1 melted. 05210_ EX-BIN: "You can't kill me, my evil twin will get revenge!" 05210_ EX-BIN destroyed. 05212_ Lgt. Treads blasted off. 05213_ Acquired 10 matter. 05213_ as-68080 destroyed. 05213_ Destroyed Asb. Hover Unit. 05213_ as-93770 destroyed. 05214_ Acquired 3 matter. 05215_ as-15615 destroyed. 05215_ as-68208 destroyed. 05215_ as-74311 destroyed. 05218_ Hrd. Light Armor Plating destroyed. 05220_ Lgt. Treads destroyed. 05220_ Rocket Launcher destroyed. 05220_ Lgt. Treads destroyed. 05220_ Knocked back. 05221_ as-44779 destroyed. 05222_ Knocked back. Map ----- +----------------------------------------------------+ | # ##???????????#"" "#????????#" | | ### "#???????????# ""#????????#" "" | | ##" ###?????????#"" ""#???????##" ### | | """ ##????????### ###??????##"" #?? | | "###"" ######???### ###?######"" #?? | | "#?##" """#####X# #"###""""""" ##? | | ##??#" """""" " "" ## | | """###???#"# "" """ " # | | ###??????#### " " | | ????????????### | | ??????????????### | | ????????????????## | | ?????????????????## % | | ??????????????????##" | | ???????????????????#""" """""" | | ??????????????????##" ######""" | | ??????????????????#"" ""##????#####"" | | ?????????????????##""" """##?????????##" | | ?????????????????#""" """##???????????#" | | ?????????????????#"""% ""#????????????#" | | ?????????????????#"" [ ########???###"" | | ?????????????????#""t %*% ##aa ####""" | | ?????????????????#" ! =% """" | | ?????????????????##"" [= % % | | ??????????????????#"" | | ??????????????????## @ | | ???????????????????#" " "" | | ???????????????????#"""" ""## ##""" | | ???????????????????#"" ""#### #??## | | ???????????????????#" """"##??# #???? | | ???????????????????#""" """#??## ####? | | ???????????????????## ! ""##??#! "!#? | | ????????????????????#"" !!!"""##???#" !#? | | ????????????????????##""" !!%!* ##????#" "#? | | ?????????????????????##"""" !!! ##?????#!!""!"#? | | ??????????????????????### ! #??????########? | | ????????????????????????##### ##??????????????? | | ????????????????????????????## #???????????????? | | ?????????????????????????????# #???????????????? | | ?????????????????????????????# #???????????????? | | ?????????????????????????????# #???????????????? | | ###?????????????????###??????# #???????????????? | | """"??????"""""???#"""""?????# #???????????????? | | ""????"""""""????"""""""???# #???????????????? | | "#??"""""" "#??#" """"#??# #???????????????? | | ""#""#""" """????"" """???# #???????????????? | | "?#""#"" ""????"" ""???# #???????????????? | | ""###""###"""########"""###### ########????????? | | """"""" """""""" """""" """""""#?"??????? | | """""" """"""" "#"" "????? | +----------------------------------------------------+ Best States ------------- Heat Dissipation 38 Energy Generation 12 Energy Capacity 265 Matter Stores 300 Matter Capacity 300 Sight Range 16 Terrain Scan Density 10 Armor Coverage 300 Evasion (%) 40 Recoil Reduction 3 Item Schematics ----------------- Huge Storage Unit | -10/Materials | Hacked Robot Schematics ------------------ None Fabricated ------------ Nothing Alien Tech Used ----------------- None Achievements -------------- None Challenges ------------ None Game ------ Seed AssaultMultinovaBrace Manual? 0 Play Time 00:40:53 Cumulative 54.0 hours Start 2024.06.24 @ 18:42:00 End 2024.06.24 @ 19:22:21 Sessions 1 Manual Loads 0 Difficulty Rogue Special Mode None Game No. 52 Rogue 45 Adventurer 7 Explorer 0 Win Type - Total 2 Types 2/0/0/0/0/0/0/0/0 Lore% 16 Gallery% 34 Achievement% 36 Wizard Run 0 Options --------- Layout 0 ASCII 0 Keyboard 0 Movement Numpad Keybinds 0 Fullscreen 2 Font 24/Smallcaps Map View 113x50 Zoom Use 0% Tactical HUD 1 Map Filters NONE Filters NONE Steam 1 RUN: 3171ee51-4479-4c61-96c7-1a65ece54d94